[Event "Live Chess"]
[Site "Chess.com"]
[Date "2024.06.01"]
[Round "-"]
[White "halfberg"]
[Black "TC2304"]
[Result "1/2-1/2"]
[WhiteElo "1914"]
[BlackElo "2330"]
[TimeControl "300"]
[EndTime "10:28:08 PDT"]
[Termination "Game drawn - timeout vs insufficient material"]

1. e4 {[%clk 0:04:56.3]} 1... Nc6 {[%clk 0:04:58.8]} 2. Nf3 {[%clk 0:04:53.4]}
2... d6 {[%clk 0:04:58.2]} 3. d4 {[%clk 0:04:50]} 3... Nf6 {[%clk 0:04:57]} 4.
Nc3 {[%clk 0:04:48.2]} 4... g6 {[%clk 0:04:55.4]} 5. Bd3 {[%clk 0:04:38.9]} 5...
Bg4 {[%clk 0:04:53.4]} 6. Be3 {[%clk 0:04:35.3]} 6... e5 {[%clk 0:04:51.7]} 7.
d5 {[%clk 0:04:29]} 7... Nd4 {[%clk 0:04:51.2]} 8. Bxd4 {[%clk 0:04:22.9]} 8...
exd4 {[%clk 0:04:48.9]} 9. Bb5+ {[%clk 0:04:17.6]} 9... Nd7 {[%clk 0:04:36.7]}
10. Qxd4 {[%clk 0:04:12]} 10... Rg8 {[%clk 0:04:24.9]} 11. Nd2 {[%clk
0:03:36.5]} 11... a6 {[%clk 0:04:02.1]} 12. h3 {[%clk 0:03:13.2]} 12... Bg7
{[%clk 0:03:43.1]} 13. Qe3 {[%clk 0:02:59]} 13... axb5 {[%clk 0:03:39.6]} 14.
hxg4 {[%clk 0:02:57.4]} 14... Ne5 {[%clk 0:03:37.3]} 15. Nxb5 {[%clk 0:02:32]}
15... Nxg4 {[%clk 0:03:30.8]} 16. Qb3 {[%clk 0:02:23.1]} 16... c6 {[%clk
0:03:14.5]} 17. Nc3 {[%clk 0:02:17.2]} 17... Bd4 {[%clk 0:02:59.5]} 18. O-O-O
{[%clk 0:02:05.2]} 18... Nxf2 {[%clk 0:02:56]} 19. Rxh7 {[%clk 0:02:01.5]} 19...
Nxd1 {[%clk 0:02:53.7]} 20. Nxd1 {[%clk 0:01:59.4]} 20... Qb6 {[%clk 0:02:47.9]}
21. dxc6 {[%clk 0:01:52.1]} 21... Qxb3 {[%clk 0:02:41.4]} 22. Nxb3 {[%clk
0:01:48]} 22... Bb6 {[%clk 0:02:39]} 23. cxb7 {[%clk 0:01:42.9]} 23... Rb8
{[%clk 0:02:38.6]} 24. Nc3 {[%clk 0:01:34.8]} 24... Rxb7 {[%clk 0:02:36]} 25.
Nd5 {[%clk 0:01:33]} 25... Bd8 {[%clk 0:02:32.4]} 26. Nd4 {[%clk 0:01:28]} 26...
Rf8 {[%clk 0:01:54.8]} 27. a4 {[%clk 0:01:12.9]} 27... Ra7 {[%clk 0:01:50.1]}
28. b3 {[%clk 0:01:08]} 28... Ra6 {[%clk 0:01:46.3]} 29. Nb5 {[%clk 0:01:03.8]}
29... Kd7 {[%clk 0:01:42.9]} 30. Kd2 {[%clk 0:00:39.5]} 30... Bg5+ {[%clk
0:01:40.7]} 31. Kd3 {[%clk 0:00:38.1]} 31... Rc6 {[%clk 0:01:39.3]} 32. c4
{[%clk 0:00:35.6]} 32... Ke6 {[%clk 0:01:31.6]} 33. Nd4+ {[%clk 0:00:34.1]}
33... Kd7 {[%clk 0:01:30.7]} 34. Nxc6 {[%clk 0:00:33.7]} 34... Kxc6 {[%clk
0:01:30.6]} 35. b4 {[%clk 0:00:30.7]} 35... Ra8 {[%clk 0:01:23.4]} 36. a5 {[%clk
0:00:24.4]} 36... Ra7 {[%clk 0:01:17]} 37. Kd4 {[%clk 0:00:22.2]} 37... Rd7
{[%clk 0:00:59.4]} 38. b5+ {[%clk 0:00:21]} 38... Kb7 {[%clk 0:00:59]} 39. a6+
{[%clk 0:00:19.4]} 39... Ka7 {[%clk 0:00:58.6]} 40. Nb4 {[%clk 0:00:17.9]} 40...
Kb6 {[%clk 0:00:52]} 41. Kd5 {[%clk 0:00:17]} 41... Re7 {[%clk 0:00:46.8]} 42.
Nc6 {[%clk 0:00:16.2]} 42... Re8 {[%clk 0:00:39.2]} 43. Rxf7 {[%clk 0:00:14.4]}
43... Be7 {[%clk 0:00:36.5]} 44. Rxe7 {[%clk 0:00:12.9]} 44... Rxe7 {[%clk
0:00:36]} 45. Nxe7 {[%clk 0:00:11.6]} 45... g5 {[%clk 0:00:35.9]} 46. Kxd6
{[%clk 0:00:10.5]} 46... g4 {[%clk 0:00:35]} 47. Nf5 {[%clk 0:00:09.3]} 47... g3
{[%clk 0:00:34]} 48. Ne3 {[%clk 0:00:08.8]} 48... Ka7 {[%clk 0:00:33.9]} 49. Nf5
{[%clk 0:00:08.3]} 49... Kb6 {[%clk 0:00:33.8]} 50. Nxg3 {[%clk 0:00:07.7]}
50... Ka7 {[%clk 0:00:33.7]} 51. Nf5 {[%clk 0:00:07.1]} 51... Kb6 {[%clk
0:00:33.6]} 52. e5 {[%clk 0:00:06.7]} 52... Ka7 {[%clk 0:00:33.5]} 53. e6 {[%clk
0:00:06.3]} 53... Kb6 {[%clk 0:00:33.4]} 54. e7 {[%clk 0:00:05.8]} 54... Ka5
{[%clk 0:00:33.3]} 55. e8=Q {[%clk 0:00:05.3]} 55... Kb4 {[%clk 0:00:33.2]} 56.
a7 {[%clk 0:00:04.6]} 56... Kc3 {[%clk 0:00:33.1]} 57. a8=Q {[%clk 0:00:04.2]}
57... Kb4 {[%clk 0:00:33]} 58. Qd5 {[%clk 0:00:03.5]} 58... Kc3 {[%clk
0:00:32.9]} 59. Qe3+ {[%clk 0:00:02.1]} 59... Kb4 {[%clk 0:00:32.8]} 60. Qdd2+
{[%clk 0:00:01]} 60... Ka4 {[%clk 0:00:32.2]} 1/2-1/2

[Event "Live Chess"]
[Site "Chess.com"]
[Date "2024.06.01"]
[Round "-"]
[White "CarmelJane"]
[Black "MaximKhimchenko"]
[Result "1-0"]
[WhiteElo "2106"]
[BlackElo "1794"]
[TimeControl "300"]
[EndTime "10:28:08 PDT"]
[Termination "CarmelJane won by resignation"]

1. e4 {[%clk 0:04:56]} 1... g6 {[%clk 0:04:50.9]} 2. d4 {[%clk 0:04:53.8]} 2...
c5 {[%clk 0:04:50.8]} 3. c3 {[%clk 0:04:49]} 3... cxd4 {[%clk 0:04:49.1]} 4.
cxd4 {[%clk 0:04:45.9]} 4... Bg7 {[%clk 0:04:46.8]} 5. Nf3 {[%clk 0:04:39.4]}
5... a6 {[%clk 0:04:44.6]} 6. Nc3 {[%clk 0:04:37.6]} 6... b5 {[%clk 0:04:43.3]}
7. a3 {[%clk 0:04:28.7]} 7... Bb7 {[%clk 0:04:38.4]} 8. Bd3 {[%clk 0:04:26.5]}
8... Qb6 {[%clk 0:04:34]} 9. Be3 {[%clk 0:04:18.2]} 9... Qe6 {[%clk 0:04:26.2]}
10. O-O {[%clk 0:04:09.2]} 10... Nf6 {[%clk 0:04:10.1]} 11. h3 {[%clk
0:04:06.2]} 11... h5 {[%clk 0:04:07.8]} 12. d5 {[%clk 0:04:02.1]} 12... Qd6
{[%clk 0:03:59.2]} 13. e5 {[%clk 0:04:01.1]} 1-0

[Event "Live Chess"]
[Site "Chess.com"]
[Date "2024.06.01"]
[Round "-"]
[White "Ninifu"]
[Black "gmnorfolk"]
[Result "0-1"]
[WhiteElo "2039"]
[BlackElo "2144"]
[TimeControl "300"]
[EndTime "10:28:14 PDT"]
[Termination "gmnorfolk won by resignation"]

1. d4 {[%clk 0:04:56.8]} 1... Nf6 {[%clk 0:04:58.5]} 2. c4 {[%clk 0:04:55.6]}
2... g6 {[%clk 0:04:58.1]} 3. Nc3 {[%clk 0:04:54.4]} 3... d5 {[%clk 0:04:57.7]}
4. Nf3 {[%clk 0:04:53.2]} 4... Bg7 {[%clk 0:04:55.9]} 5. cxd5 {[%clk 0:04:52.2]}
5... Nxd5 {[%clk 0:04:54.5]} 6. e4 {[%clk 0:04:51.5]} 6... Nxc3 {[%clk 0:04:54]}
7. bxc3 {[%clk 0:04:50.9]} 7... c5 {[%clk 0:04:53.5]} 8. Rb1 {[%clk 0:04:49.9]}
8... O-O {[%clk 0:04:51.1]} 9. Be2 {[%clk 0:04:48.4]} 9... Nc6 {[%clk
0:04:50.2]} 10. d5 {[%clk 0:04:47.2]} 10... Ne5 {[%clk 0:04:45.2]} 11. Nxe5
{[%clk 0:04:44.5]} 11... Bxe5 {[%clk 0:04:43.5]} 12. Rb3 {[%clk 0:04:30.5]}
12... e6 {[%clk 0:04:33.5]} 13. c4 {[%clk 0:04:26.5]} 13... exd5 {[%clk
0:04:29.2]} 14. cxd5 {[%clk 0:04:24]} 14... f5 {[%clk 0:04:17]} 15. h4 {[%clk
0:04:07.2]} 15... fxe4 {[%clk 0:04:12.1]} 16. h5 {[%clk 0:04:05.5]} 16... Qf6
{[%clk 0:04:04.4]} 17. Be3 {[%clk 0:03:53.3]} 17... Bd4 {[%clk 0:04:01.3]} 18.
Qd2 {[%clk 0:03:40.3]} 18... Bf5 {[%clk 0:03:42.4]} 19. Rxb7 {[%clk 0:03:23.7]}
19... Bc3 {[%clk 0:03:38.8]} 0-1

[Event "Live Chess"]
[Site "Chess.com"]
[Date "2024.06.01"]
[Round "-"]
[White "vincents82"]
[Black "NottheBishopSacrifice"]
[Result "0-1"]
[WhiteElo "2123"]
[BlackElo "2219"]
[TimeControl "300"]
[EndTime "10:28:29 PDT"]
[Termination "NottheBishopSacrifice won by resignation"]

1. e4 {[%clk 0:04:55.5]} 1... c6 {[%clk 0:04:58.6]} 2. d4 {[%clk 0:04:47.6]}
2... d5 {[%clk 0:04:58.1]} 3. Nc3 {[%clk 0:04:46.8]} 3... dxe4 {[%clk
0:04:56.5]} 4. Nxe4 {[%clk 0:04:46.2]} 4... Nf6 {[%clk 0:04:56.2]} 5. Nxf6+
{[%clk 0:04:45]} 5... exf6 {[%clk 0:04:56.1]} 6. c3 {[%clk 0:04:44]} 6... Bd6
{[%clk 0:04:55.1]} 7. Bd3 {[%clk 0:04:43.4]} 7... O-O {[%clk 0:04:53.1]} 8. Ne2
{[%clk 0:04:42.8]} 8... Re8 {[%clk 0:04:49.6]} 9. O-O {[%clk 0:04:41.9]} 9...
Nd7 {[%clk 0:04:49.2]} 10. f4 {[%clk 0:04:37.9]} 10... Nf8 {[%clk 0:04:47.4]}
11. f5 {[%clk 0:04:35.8]} 11... Qc7 {[%clk 0:04:45]} 12. h3 {[%clk 0:04:32.1]}
12... h6 {[%clk 0:04:42.5]} 13. Bf4 {[%clk 0:04:29.9]} 13... Nh7 {[%clk
0:04:40.1]} 14. Qd2 {[%clk 0:04:25.4]} 14... Ng5 {[%clk 0:04:38.3]} 15. h4
{[%clk 0:04:20.3]} 15... Ne4 {[%clk 0:04:35.8]} 16. Bxe4 {[%clk 0:04:18.9]}
16... Rxe4 {[%clk 0:04:35.7]} 17. Bxd6 {[%clk 0:04:17.9]} 17... Qxd6 {[%clk
0:04:34.4]} 18. Rae1 {[%clk 0:04:15.8]} 18... Bd7 {[%clk 0:04:32.4]} 19. Nf4
{[%clk 0:04:10.7]} 19... Rae8 {[%clk 0:04:30.7]} 20. g3 {[%clk 0:04:06.7]} 20...
Bxf5 {[%clk 0:04:27.3]} 21. Rxe4 {[%clk 0:04:05.3]} 21... Bxe4 {[%clk
0:04:25.4]} 22. Re1 {[%clk 0:04:04]} 22... f5 {[%clk 0:04:24.3]} 23. Re3 {[%clk
0:04:02.2]} 23... c5 {[%clk 0:04:22.4]} 24. d5 {[%clk 0:03:57.2]} 24... c4
{[%clk 0:04:21.2]} 25. Qd4 {[%clk 0:03:53.4]} 25... Rd8 {[%clk 0:04:18.2]} 26.
Qxc4 {[%clk 0:03:49.6]} 26... Qb6 {[%clk 0:04:12.7]} 27. Qd4 {[%clk 0:03:46.5]}
27... Qxb2 {[%clk 0:04:04.9]} 28. d6 {[%clk 0:03:25.8]} 28... Qa1+ {[%clk
0:04:02.5]} 29. Kf2 {[%clk 0:03:24]} 29... Qxa2+ {[%clk 0:04:01.2]} 30. Re2
{[%clk 0:03:21.9]} 30... Qa6 {[%clk 0:03:57.9]} 31. d7 {[%clk 0:03:19.8]} 31...
Qb6 {[%clk 0:03:54.8]} 32. Qxb6 {[%clk 0:03:08.4]} 32... axb6 {[%clk 0:03:54.7]}
33. Rd2 {[%clk 0:03:07.6]} 33... Kf8 {[%clk 0:03:53.3]} 34. Rd6 {[%clk
0:02:57.8]} 34... Ke7 {[%clk 0:03:48.8]} 35. Rxb6 {[%clk 0:02:56.3]} 35... Rxd7
{[%clk 0:03:48.4]} 36. h5 {[%clk 0:02:47.9]} 36... Rc7 {[%clk 0:03:46.1]} 37.
Rb3 {[%clk 0:02:45.9]} 37... Kf6 {[%clk 0:03:43]} 38. Ke3 {[%clk 0:02:42.7]}
38... Re7 {[%clk 0:03:39.1]} 39. Kd4 {[%clk 0:02:41.4]} 39... Rd7+ {[%clk
0:03:37]} 40. Kc5 {[%clk 0:02:40.4]} 40... Kg5 {[%clk 0:03:35.1]} 41. Ne2 {[%clk
0:02:19.1]} 41... Kxh5 {[%clk 0:03:32.7]} 42. Nd4 {[%clk 0:02:18.3]} 42... Kg4
{[%clk 0:03:30.9]} 43. Nb5 {[%clk 0:02:03.5]} 43... Kxg3 {[%clk 0:03:26.9]} 44.
Nd6 {[%clk 0:02:01.8]} 44... Rxd6 {[%clk 0:03:20.2]} 45. Kxd6 {[%clk 0:02:00.6]}
45... h5 {[%clk 0:03:20.1]} 46. Ke5 {[%clk 0:01:59.5]} 46... h4 {[%clk
0:03:18.5]} 47. c4+ {[%clk 0:01:58.5]} 47... Kg4 {[%clk 0:03:17.3]} 48. c5
{[%clk 0:01:57]} 48... h3 {[%clk 0:03:16.5]} 49. Rb2 {[%clk 0:01:53.7]} 49...
Kg3 {[%clk 0:03:14.8]} 0-1

[Event "Live Chess"]
[Site "Chess.com"]
[Date "2024.06.01"]
[Round "-"]
[White "viktorskliarov"]
[Black "FlyingChessKestrel13"]
[Result "1-0"]
[WhiteElo "2643"]
[BlackElo "2103"]
[TimeControl "300"]
[EndTime "10:28:37 PDT"]
[Termination "viktorskliarov won by resignation"]

1. e4 {[%clk 0:04:58.5]} 1... e5 {[%clk 0:04:58.7]} 2. Nc3 {[%clk 0:04:57]} 2...
Nf6 {[%clk 0:04:55.6]} 3. Bc4 {[%clk 0:04:56.4]} 3... Bc5 {[%clk 0:04:54.2]} 4.
d3 {[%clk 0:04:55.6]} 4... d6 {[%clk 0:04:53.4]} 5. h3 {[%clk 0:04:55]} 5... c6
{[%clk 0:04:52.6]} 6. Nge2 {[%clk 0:04:54.5]} 6... b5 {[%clk 0:04:51.8]} 7. Bb3
{[%clk 0:04:53.6]} 7... a5 {[%clk 0:04:50.8]} 8. a3 {[%clk 0:04:51.2]} 8... O-O
{[%clk 0:04:48.8]} 9. Ng3 {[%clk 0:04:50.1]} 9... Qb6 {[%clk 0:04:47]} 10. O-O
{[%clk 0:04:48.6]} 10... b4 {[%clk 0:04:45.9]} 11. Na4 {[%clk 0:04:46.6]} 11...
Qa7 {[%clk 0:04:41.6]} 12. Nxc5 {[%clk 0:04:39.6]} 12... Qxc5 {[%clk 0:04:40.7]}
13. Be3 {[%clk 0:04:30]} 13... Qb5 {[%clk 0:04:34.2]} 14. axb4 {[%clk
0:04:27.9]} 14... Qxb4 {[%clk 0:04:32]} 15. f4 {[%clk 0:04:27.1]} 15... exf4
{[%clk 0:04:24.5]} 16. Rxf4 {[%clk 0:04:21.8]} 16... Qb5 {[%clk 0:04:14.7]} 17.
Nf5 {[%clk 0:04:13.5]} 17... Bxf5 {[%clk 0:04:11.4]} 18. Rxf5 {[%clk 0:04:12.4]}
18... Qb7 {[%clk 0:04:06]} 19. Rxf6 {[%clk 0:04:08.8]} 19... gxf6 {[%clk
0:04:04.5]} 20. Bh6 {[%clk 0:04:07.8]} 20... Qd7 {[%clk 0:03:46.5]} 21. Qe1
{[%clk 0:04:01.1]} 21... Kh8 {[%clk 0:03:45.1]} 22. Bxf8 {[%clk 0:03:58.7]}
22... Qe8 {[%clk 0:03:44.5]} 23. Bxd6 {[%clk 0:03:56]} 23... Nd7 {[%clk
0:03:43.1]} 24. Rxa5 {[%clk 0:03:53.8]} 1-0

[Event "Live Chess"]
[Site "Chess.com"]
[Date "2024.06.01"]
[Round "-"]
[White "PureDashingOctopus"]
[Black "Crowded_House"]
[Result "1-0"]
[WhiteElo "2228"]
[BlackElo "1750"]
[TimeControl "300"]
[EndTime "10:28:39 PDT"]
[Termination "PureDashingOctopus won by resignation"]

1. e4 {[%clk 0:04:56.5]} 1... e6 {[%clk 0:04:59.4]} 2. d4 {[%clk 0:04:55]} 2...
d5 {[%clk 0:04:58.1]} 3. Nd2 {[%clk 0:04:53.3]} 3... dxe4 {[%clk 0:04:56.7]} 4.
Nxe4 {[%clk 0:04:52.1]} 4... Bd7 {[%clk 0:04:56.5]} 5. Nf3 {[%clk 0:04:50.3]}
5... Bc6 {[%clk 0:04:56.2]} 6. Bd3 {[%clk 0:04:49.5]} 6... Nd7 {[%clk
0:04:55.7]} 7. O-O {[%clk 0:04:48.1]} 7... Ngf6 {[%clk 0:04:55.3]} 8. Nxf6+
{[%clk 0:04:46.9]} 8... Qxf6 {[%clk 0:04:53.4]} 9. Be3 {[%clk 0:04:36.9]} 9...
Bxf3 {[%clk 0:04:50.9]} 10. Qxf3 {[%clk 0:04:35.6]} 10... Qxf3 {[%clk
0:04:49.8]} 11. gxf3 {[%clk 0:04:35.5]} 11... Bd6 {[%clk 0:04:43.1]} 12. c4
{[%clk 0:04:33.5]} 12... c6 {[%clk 0:04:37.9]} 13. Be4 {[%clk 0:04:29.4]} 13...
Nf6 {[%clk 0:04:35.4]} 14. Rab1 {[%clk 0:04:20.5]} 14... O-O {[%clk 0:04:31.8]}
15. b4 {[%clk 0:04:19.4]} 15... a6 {[%clk 0:04:30.9]} 16. a4 {[%clk 0:04:17]}
16... Rab8 {[%clk 0:04:27.9]} 17. b5 {[%clk 0:04:15.6]} 17... cxb5 {[%clk
0:04:26.7]} 18. axb5 {[%clk 0:04:14.9]} 18... axb5 {[%clk 0:04:25.8]} 19. Rxb5
{[%clk 0:04:13.6]} 19... Rfc8 {[%clk 0:04:08.6]} 20. c5 {[%clk 0:04:09.3]} 20...
Nxe4 {[%clk 0:03:53.6]} 21. fxe4 {[%clk 0:04:06.1]} 21... Bc7 {[%clk 0:03:49.7]}
22. Rfb1 {[%clk 0:04:04.8]} 22... Kf8 {[%clk 0:03:34.4]} 23. Rxb7 {[%clk
0:04:00.3]} 23... Rxb7 {[%clk 0:03:32.2]} 24. Rxb7 {[%clk 0:04:00.1]} 24... Ke8
{[%clk 0:03:25.5]} 25. d5 {[%clk 0:03:56.8]} 25... exd5 {[%clk 0:03:22.5]} 26.
exd5 {[%clk 0:03:52.4]} 26... Be5 {[%clk 0:03:18.1]} 27. d6 {[%clk 0:03:50.6]}
27... Rd8 {[%clk 0:03:08.1]} 28. Re7+ {[%clk 0:03:48.5]} 28... Kf8 {[%clk
0:03:04.9]} 29. Rxe5 {[%clk 0:03:48.4]} 29... f6 {[%clk 0:03:03.9]} 30. Rd5
{[%clk 0:03:46.6]} 30... Kf7 {[%clk 0:03:01.5]} 31. c6 {[%clk 0:03:45.9]} 31...
Ke6 {[%clk 0:03:01]} 32. c7 {[%clk 0:03:45.3]} 32... Rc8 {[%clk 0:02:59.7]} 33.
d7 {[%clk 0:03:44.6]} 33... Rxc7 {[%clk 0:02:57]} 34. d8=Q {[%clk 0:03:43.6]}
1-0

[Event "Live Chess"]
[Site "Chess.com"]
[Date "2024.06.01"]
[Round "-"]
[White "willc-h99"]
[Black "Isambard_Thomas"]
[Result "1-0"]
[WhiteElo "2642"]
[BlackElo "2143"]
[TimeControl "300"]
[EndTime "10:28:48 PDT"]
[Termination "willc-h99 won by resignation"]

1. e3 {[%clk 0:04:57.7]} 1... d5 {[%clk 0:04:58.5]} 2. Nf3 {[%clk 0:04:56.1]}
2... Nf6 {[%clk 0:04:57.7]} 3. c4 {[%clk 0:04:55.1]} 3... c6 {[%clk 0:04:55.9]}
4. Nc3 {[%clk 0:04:54.3]} 4... Bg4 {[%clk 0:04:55]} 5. Qb3 {[%clk 0:04:52.7]}
5... Bxf3 {[%clk 0:04:50.5]} 6. Qxb7 {[%clk 0:04:50.3]} 6... Nbd7 {[%clk
0:04:19.7]} 7. gxf3 {[%clk 0:04:47.6]} 7... Qc8 {[%clk 0:04:12.5]} 8. Qxc8+
{[%clk 0:04:43.6]} 8... Rxc8 {[%clk 0:04:12.4]} 9. b3 {[%clk 0:04:38.2]} 9... e5
{[%clk 0:04:10.5]} 10. cxd5 {[%clk 0:04:28.5]} 10... cxd5 {[%clk 0:04:08.5]} 11.
Bb2 {[%clk 0:04:26.9]} 11... d4 {[%clk 0:03:50.9]} 12. exd4 {[%clk 0:04:25]}
12... exd4 {[%clk 0:03:50.3]} 13. Ne4 {[%clk 0:04:24.3]} 13... Nxe4 {[%clk
0:03:47.1]} 14. fxe4 {[%clk 0:04:23]} 14... Bc5 {[%clk 0:03:43.9]} 15. f4 {[%clk
0:04:10.9]} 15... Ke7 {[%clk 0:03:39]} 16. Bd3 {[%clk 0:04:03.8]} 16... h5
{[%clk 0:03:36.6]} 17. h4 {[%clk 0:04:00.5]} 17... Nf6 {[%clk 0:03:32.5]} 18.
Ke2 {[%clk 0:03:56.2]} 18... Ng4 {[%clk 0:03:31.1]} 19. Rac1 {[%clk 0:03:53.5]}
19... Bb6 {[%clk 0:03:14.8]} 20. Ba3+ {[%clk 0:03:50.2]} 20... Kd8 {[%clk
0:03:01.8]} 21. Rxc8+ {[%clk 0:03:43.4]} 21... Kxc8 {[%clk 0:03:00.7]} 22. Rc1+
{[%clk 0:03:42.5]} 22... Kb7 {[%clk 0:02:42.5]} 23. Bc4 {[%clk 0:03:36.7]} 23...
Re8 {[%clk 0:02:35.7]} 24. Kf3 {[%clk 0:03:12.2]} 24... f5 {[%clk 0:01:59.2]}
25. e5 {[%clk 0:03:00.5]} 25... Rd8 {[%clk 0:01:50.7]} 26. e6 {[%clk 0:02:53.8]}
26... Nf6 {[%clk 0:01:47.1]} 27. e7 {[%clk 0:02:52.1]} 27... Rd7 {[%clk
0:01:22.6]} 28. Bb5 {[%clk 0:02:42.2]} 28... Rc7 {[%clk 0:00:49.4]} 29. Rxc7+
{[%clk 0:02:37.7]} 29... Bxc7 {[%clk 0:00:49.3]} 30. e8=Q {[%clk 0:02:36.7]}
30... Nxe8 {[%clk 0:00:46.8]} 31. Bxe8 {[%clk 0:02:36.6]} 1-0

[Event "Live Chess"]
[Site "Chess.com"]
[Date "2024.06.01"]
[Round "-"]
[White "DJ_Lambton"]
[Black "KyryloPoluliakh"]
[Result "0-1"]
[WhiteElo "1752"]
[BlackElo "1508"]
[TimeControl "300"]
[EndTime "10:28:48 PDT"]
[Termination "KyryloPoluliakh won by resignation"]

1. c4 {[%clk 0:04:58]} 1... Nf6 {[%clk 0:04:56]} 2. g3 {[%clk 0:04:56.9]} 2...
g6 {[%clk 0:04:53.8]} 3. Bg2 {[%clk 0:04:55.1]} 3... Bg7 {[%clk 0:04:52.4]} 4.
Nc3 {[%clk 0:04:54.6]} 4... O-O {[%clk 0:04:48.5]} 5. e3 {[%clk 0:04:51.4]} 5...
c5 {[%clk 0:04:45.5]} 6. Nge2 {[%clk 0:04:50.3]} 6... Nc6 {[%clk 0:04:43.5]} 7.
O-O {[%clk 0:04:49.9]} 7... e6 {[%clk 0:04:42.3]} 8. b3 {[%clk 0:04:49.5]} 8...
d5 {[%clk 0:04:36]} 9. cxd5 {[%clk 0:04:48]} 9... exd5 {[%clk 0:04:35.2]} 10. d4
{[%clk 0:04:47.1]} 10... cxd4 {[%clk 0:04:32.5]} 11. Nxd4 {[%clk 0:04:47]} 11...
Nxd4 {[%clk 0:04:29.5]} 12. exd4 {[%clk 0:04:44.5]} 12... Be6 {[%clk 0:04:25.7]}
13. Bb2 {[%clk 0:04:43.8]} 13... Rc8 {[%clk 0:04:22.5]} 14. Rc1 {[%clk
0:04:43.2]} 14... Qb6 {[%clk 0:04:12.4]} 15. Qd2 {[%clk 0:04:40]} 15... Rfd8
{[%clk 0:04:06.4]} 16. Rfe1 {[%clk 0:04:38]} 16... Ne8 {[%clk 0:03:54.5]} 17.
Ne2 {[%clk 0:04:37]} 17... Nc7 {[%clk 0:03:48.5]} 18. Nf4 {[%clk 0:04:36]} 18...
g5 {[%clk 0:03:35.8]} 19. Nxe6 {[%clk 0:04:34.2]} 19... Nxe6 {[%clk 0:03:33.3]}
20. Ba3 {[%clk 0:04:23.7]} 20... Bxd4 {[%clk 0:03:20.5]} 21. Be7 {[%clk
0:04:22.7]} 21... Rxc1 {[%clk 0:03:13.2]} 22. Rxc1 {[%clk 0:04:21.2]} 22... Re8
{[%clk 0:03:06.5]} 23. Bxg5 {[%clk 0:04:16.8]} 23... Bxf2+ {[%clk 0:02:51.1]}
24. Kf1 {[%clk 0:04:15.7]} 24... Bd4 {[%clk 0:02:47.5]} 25. Bxd5 {[%clk
0:04:11.7]} 25... Qb5+ {[%clk 0:02:41]} 26. Bc4 {[%clk 0:04:11.1]} 26... Qxg5
{[%clk 0:02:37.8]} 27. Qxg5+ {[%clk 0:04:09.8]} 27... Nxg5 {[%clk 0:02:37.3]}
28. Rd1 {[%clk 0:04:09.3]} 28... Bg7 {[%clk 0:02:34.3]} 29. Rd7 {[%clk
0:04:06.7]} 29... Nf3 {[%clk 0:02:29.8]} 30. Rxf7 {[%clk 0:04:05.5]} 30... Nd2+
{[%clk 0:02:17.7]} 31. Kf2 {[%clk 0:04:04.7]} 31... Nxc4 {[%clk 0:02:14.8]} 32.
Rxb7 {[%clk 0:04:04]} 32... Nd2 {[%clk 0:02:09.4]} 0-1

[Event "Live Chess"]
[Site "Chess.com"]
[Date "2024.06.01"]
[Round "-"]
[White "Larchikov"]
[Black "Pizzaman313"]
[Result "1-0"]
[WhiteElo "1980"]
[BlackElo "1211"]
[TimeControl "300"]
[EndTime "10:28:52 PDT"]
[Termination "Larchikov won by resignation"]

1. d4 {[%clk 0:04:57.8]} 1... f5 {[%clk 0:04:58.1]} 2. c4 {[%clk 0:04:57.7]}
2... g6 {[%clk 0:04:53.3]} 3. Nc3 {[%clk 0:04:56.3]} 3... Nf6 {[%clk 0:04:52.7]}
4. Bg5 {[%clk 0:04:53.9]} 4... Bg7 {[%clk 0:04:51.7]} 5. Bxf6 {[%clk 0:04:51.4]}
5... Bxf6 {[%clk 0:04:50.3]} 6. e4 {[%clk 0:04:50.1]} 6... d6 {[%clk 0:04:46.2]}
7. Nf3 {[%clk 0:04:48]} 7... O-O {[%clk 0:04:42.3]} 8. e5 {[%clk 0:04:46.7]}
8... dxe5 {[%clk 0:04:38.9]} 9. dxe5 {[%clk 0:04:46.6]} 9... Bg7 {[%clk
0:04:35.5]} 10. h4 {[%clk 0:04:44.6]} 10... e6 {[%clk 0:04:30.9]} 11. h5 {[%clk
0:04:42.2]} 11... Nc6 {[%clk 0:04:21.5]} 12. hxg6 {[%clk 0:04:27.9]} 12... hxg6
{[%clk 0:04:05.1]} 13. Qe2 {[%clk 0:04:17.8]} 13... Nd4 {[%clk 0:03:56.2]} 14.
Nxd4 {[%clk 0:04:16.3]} 14... Qxd4 {[%clk 0:03:53.3]} 15. Nb5 {[%clk 0:04:09.2]}
15... Qxe5 {[%clk 0:03:47.5]} 16. O-O-O {[%clk 0:04:04.4]} 16... a6 {[%clk
0:03:26.2]} 17. Nd4 {[%clk 0:03:53.3]} 17... Rd8 {[%clk 0:03:04]} 18. Nf3 {[%clk
0:03:46.7]} 18... Rxd1+ {[%clk 0:03:00.9]} 19. Kxd1 {[%clk 0:03:38.3]} 19...
Qxe2+ {[%clk 0:02:49.8]} 20. Bxe2 {[%clk 0:03:34.4]} 20... Bd7 {[%clk
0:02:44.4]} 21. Kc1 {[%clk 0:03:27]} 21... Bc6 {[%clk 0:02:32.3]} 22. Ng5 {[%clk
0:03:16.7]} 22... Bxg2 {[%clk 0:02:25.2]} 23. Rg1 {[%clk 0:02:57.8]} 23... Bc6
{[%clk 0:02:11.3]} 24. Nxe6 {[%clk 0:02:55.8]} 24... Re8 {[%clk 0:02:05.3]} 25.
Rxg6 {[%clk 0:02:39]} 25... Re7 {[%clk 0:01:47.6]} 26. Bd3 {[%clk 0:02:10.1]}
26... Bd7 {[%clk 0:01:16.2]} 27. Bxf5 {[%clk 0:02:04.5]} 27... Bxe6 {[%clk
0:01:04.7]} 28. Rxe6 {[%clk 0:01:54.9]} 28... Rf7 {[%clk 0:00:48.5]} 29. Re8+
{[%clk 0:01:51.4]} 29... Bf8 {[%clk 0:00:43.2]} 30. Be6 {[%clk 0:01:49.7]} 1-0

[Event "Live Chess"]
[Site "Chess.com"]
[Date "2024.06.01"]
[Round "-"]
[White "Grace6363"]
[Black "Brooms1989"]
[Result "1-0"]
[WhiteElo "1121"]
[BlackElo "1065"]
[TimeControl "300"]
[EndTime "10:28:57 PDT"]
[Termination "Grace6363 won by resignation"]

1. d4 {[%clk 0:04:56.4]} 1... Nf6 {[%clk 0:04:57.9]} 2. c4 {[%clk 0:04:55.2]}
2... g6 {[%clk 0:04:56.9]} 3. Nc3 {[%clk 0:04:52.5]} 3... Bg7 {[%clk 0:04:55.9]}
4. Nf3 {[%clk 0:04:51.2]} 4... O-O {[%clk 0:04:54.5]} 5. Bg5 {[%clk 0:04:50.5]}
5... d6 {[%clk 0:04:47.6]} 6. e4 {[%clk 0:04:49.7]} 6... Nbd7 {[%clk 0:04:45.3]}
7. Be2 {[%clk 0:04:48.8]} 7... h6 {[%clk 0:04:39.1]} 8. Bh4 {[%clk 0:04:46.6]}
8... g5 {[%clk 0:04:35]} 9. Bg3 {[%clk 0:04:45.3]} 9... Nh5 {[%clk 0:04:33.6]}
10. e5 {[%clk 0:04:41.8]} 10... Nxg3 {[%clk 0:04:31.7]} 11. hxg3 {[%clk
0:04:39.6]} 11... f5 {[%clk 0:04:28.8]} 12. exf6 {[%clk 0:04:37.8]} 12... Bxf6
{[%clk 0:04:22.9]} 13. Rxh6 {[%clk 0:04:36.6]} 13... Kg7 {[%clk 0:04:14.5]} 14.
Rh5 {[%clk 0:04:27.1]} 1-0